[Event "Torneo Nuevo Centro. Jornada 11"]
[Site "Chess.com"]
[Date "2020.08.28"]
[Round "5"]
[White "Vicent Lázaro, Elena"]
[Black "Fernández Martin, Carlos"]
[Result "0-1"]
[WhiteElo "726"]
[BlackElo "1770"]
[TimeControl "180+2"]
[EndTime "11:15:30 PDT"]
[Termination "Victoria de Pistachomortal por abandono"]

1. e3 {[%clk 0:03:01.9]} 1... c5 {[%clk 0:03:00]} 2. c4 {[%clk 0:03:00.4]} 2...
Nc6 {[%clk 0:03:00.1]} 3. Nc3 {[%clk 0:02:59.4]} 3... Nf6 {[%clk 0:03:00.5]} 4.
Bd3 {[%clk 0:02:59.2]} 4... g6 {[%clk 0:03:01.5]} 5. Nh3 {[%clk 0:02:55.1]} 5...
Ne5 {[%clk 0:03:02]} 6. Ng5 {[%clk 0:02:55.1]} 6... Nxd3+ {[%clk 0:03:01.4]} 7.
Kf1 {[%clk 0:02:52]} 7... Bh6 {[%clk 0:03:01.3]} 8. Nh3 {[%clk 0:02:48.2]} 8...
d6 {[%clk 0:03:00.5]} 9. Qc2 {[%clk 0:02:42.2]} 9... Bxh3 {[%clk 0:02:59.6]} 10.
gxh3 {[%clk 0:02:40.3]} 10... Ne5 {[%clk 0:02:58.3]} 11. Qf5 {[%clk 0:02:04.4]}
11... gxf5 {[%clk 0:02:57.4]} 0

[Event "Torneo Nuevo Centro. Jornada 11"]
[Site "Chess.com"]
[Date "2020.08.28"]
[Round "5"]
[White "Conon, Catalin"]
[Black "Casado Andreu, David"]
[Result "1-0"]
[WhiteElo "1915"]
[BlackElo "1567"]
[TimeControl "180+2"]
[EndTime "11:17:01 PDT"]
[Termination "Victoria de CatalinConon por abandono"]

1. Nf3 {[%clk 0:03:01.4]} 1... Nc6 {[%clk 0:02:59.6]} 2. b3 {[%clk 0:03:03.3]}
2... e5 {[%clk 0:02:51.9]} 3. Bb2 {[%clk 0:03:03.6]} 3... d6 {[%clk 0:02:53.4]}
4. e3 {[%clk 0:03:04.3]} 4... g6 {[%clk 0:02:53.9]} 5. d4 {[%clk 0:03:05.1]}
5... Bg7 {[%clk 0:02:54.4]} 6. dxe5 {[%clk 0:02:51.3]} 6... dxe5 {[%clk
0:02:53.9]} 7. Qxd8+ {[%clk 0:02:52.2]} 7... Kxd8 {[%clk 0:02:55]} 8. c4 {[%clk
0:02:53.2]} 8... Bf5 {[%clk 0:02:52]} 9. Nc3 {[%clk 0:02:53.1]} 9... Nb4 {[%clk
0:02:49.6]} 10. O-O-O+ {[%clk 0:02:53.3]} 10... Ke8 {[%clk 0:02:48.7]} 11. e4
{[%clk 0:02:54.4]} 11... Bg4 {[%clk 0:02:48.5]} 12. h3 {[%clk 0:02:54.4]} 12...
Be6 {[%clk 0:02:49.8]} 13. Kb1 {[%clk 0:02:54.4]} 13... Nf6 {[%clk 0:02:48.4]}
14. Nxe5 {[%clk 0:02:34.8]} 14... Nd7 {[%clk 0:02:23.4]} 15. Nxd7 {[%clk
0:02:31.9]} 15... Bxd7 {[%clk 0:02:25.3]} 16. Nd5 {[%clk 0:02:32]} 16... Nxd5
{[%clk 0:02:20.7]} 17. exd5 {[%clk 0:02:32.3]} 17... Bf5+ {[%clk 0:02:17.6]} 18.
Bd3 {[%clk 0:02:32.3]} 18... Bxb2 {[%clk 0:02:15.8]} 19. Kxb2 {[%clk 0:02:32.6]}
19... Bxd3 {[%clk 0:02:07.2]} 20. Rxd3 {[%clk 0:02:34.5]} 20... Kd7 {[%clk
0:02:08.6]} 21. Re1 {[%clk 0:02:34.7]} 21... Rae8 {[%clk 0:02:10.5]} 22. Rde3
{[%clk 0:02:35.8]} 22... f5 {[%clk 0:02:09.5]} 23. Rxe8 {[%clk 0:02:36.4]} 23...
Rxe8 {[%clk 0:02:11]} 24. Rxe8 {[%clk 0:02:37.9]} 24... Kxe8 {[%clk 0:02:12.9]}
25. Kc3 {[%clk 0:02:39.3]} 25... Kf7 {[%clk 0:02:14.8]} 26. Kd4 {[%clk
0:02:40.8]} 26... Kf6 {[%clk 0:02:16.2]} 27. c5 {[%clk 0:02:41.9]} 27... f4
{[%clk 0:02:16.4]} 28. b4 {[%clk 0:02:33.3]} 28... h6 {[%clk 0:02:17.4]} 29. b5
{[%clk 0:02:33.7]} 29... g5 {[%clk 0:02:17.6]} 30. a4 {[%clk 0:02:33.3]} 30...
Ke7 {[%clk 0:02:15]} 31. Ke5 {[%clk 0:02:33.7]} 1

[Event "Torneo Nuevo Centro. Jornada 11"]
[Site "Chess.com"]
[Date "2020.08.28"]
[Round "5"]
[White "Bendayán Claros, Aaron"]
[Black "Alvarez Usina, Jordi"]
[Result "1-0"]
[WhiteElo "1987"]
[BlackElo "1266"]
[TimeControl "180+2"]
[EndTime "11:17:21 PDT"]
[Termination "Victoria de Cuajada_Zero por abandono"]

1. d4 {[%clk 0:03:01.9]} 1... d5 {[%clk 0:02:59.1]} 2. e3 {[%clk 0:02:59]} 2...
Bf5 {[%clk 0:02:53.1]} 3. Bd3 {[%clk 0:02:55.4]} 3... Bg6 {[%clk 0:02:52.3]} 4.
Nd2 {[%clk 0:02:52.1]} 4... e6 {[%clk 0:02:49.4]} 5. f4 {[%clk 0:02:52.4]} 5...
Nf6 {[%clk 0:02:47]} 6. Ngf3 {[%clk 0:02:51.1]} 6... Ne4 {[%clk 0:02:44.2]} 7.
O-O {[%clk 0:02:30.6]} 7... Nd7 {[%clk 0:02:39.7]} 8. Ne5 {[%clk 0:02:30.1]}
8... Be7 {[%clk 0:02:31.3]} 9. Nxg6 {[%clk 0:02:25.3]} 9... hxg6 {[%clk
0:02:29.2]} 10. Nxe4 {[%clk 0:02:24.8]} 10... dxe4 {[%clk 0:02:26.9]} 11. Bxe4
{[%clk 0:02:24.4]} 11... Nf6 {[%clk 0:02:26.8]} 12. Bf3 {[%clk 0:02:24.5]} 12...
c6 {[%clk 0:02:25.7]} 13. c4 {[%clk 0:02:23.2]} 13... O-O {[%clk 0:02:25.3]} 14.
b3 {[%clk 0:02:24]} 14... Nd7 {[%clk 0:02:19.6]} 15. Bb2 {[%clk 0:02:22.5]}
15... Nf6 {[%clk 0:02:15.1]} 16. e4 {[%clk 0:02:17.6]} 16... Qc7 {[%clk
0:02:10.6]} 17. e5 {[%clk 0:02:17.9]} 17... Nh5 {[%clk 0:02:06.8]} 18. Bxh5
{[%clk 0:02:18]} 18... gxh5 {[%clk 0:02:06.3]} 19. Qxh5 {[%clk 0:02:16.8]} 19...
Rfe8 {[%clk 0:01:57.5]} 20. Rf3 {[%clk 0:02:11.8]} 20... g6 {[%clk 0:01:53.5]}
21. Qg4 {[%clk 0:02:09]} 21... Bf8 {[%clk 0:01:52.3]} 22. Raf1 {[%clk
0:02:09.1]} 1

[Event "Torneo Nuevo Centro. Jornada 11"]
[Site "Chess.com"]
[Date "2020.08.28"]
[Round "5"]
[White "Más Ripoll, Vicente"]
[Black "Ainsa Jimenez, Lucas"]
[Result "1-0"]
[WhiteElo "1072"]
[BlackElo "1149"]
[TimeControl "180+2"]
[EndTime "11:17:33 PDT"]
[Termination "Victoria de menut por jaque mate"]

1. e4 {[%clk 0:03:01.9]} 1... e5 {[%clk 0:03:00.8]} 2. Nf3 {[%clk 0:03:02.1]}
2... Nc6 {[%clk 0:02:54.5]} 3. Bc4 {[%clk 0:03:01.6]} 3... Bc5 {[%clk
0:02:53.8]} 4. O-O {[%clk 0:03:00.8]} 4... Nf6 {[%clk 0:02:52.8]} 5. d3 {[%clk
0:03:00.3]} 5... O-O {[%clk 0:02:52.5]} 6. a3 {[%clk 0:03:00]} 6... a5 {[%clk
0:02:50.1]} 7. Be3 {[%clk 0:02:56.3]} 7... Bxe3 {[%clk 0:02:49.5]} 8. fxe3
{[%clk 0:02:56.9]} 8... Ne7 {[%clk 0:02:43.9]} 9. Nxe5 {[%clk 0:02:56.6]} 9...
d5 {[%clk 0:02:39.4]} 10. exd5 {[%clk 0:02:53.4]} 10... Nexd5 {[%clk 0:02:39.8]}
11. Bxd5 {[%clk 0:02:40.9]} 11... Nxd5 {[%clk 0:02:35.6]} 12. Qf3 {[%clk
0:02:35.4]} 12... Qd6 {[%clk 0:02:16.8]} 13. Nxf7 {[%clk 0:02:26.9]} 13... Qe6
{[%clk 0:01:54.7]} 14. Nh6+ {[%clk 0:02:18.9]} 14... gxh6 {[%clk 0:00:55.7]} 15.
Qxf8# {[%clk 0:02:13.7]} 1

[Event "Torneo Nuevo Centro. Jornada 11"]
[Site "Chess.com"]
[Date "2020.08.28"]
[Round "5"]
[White "Méndez Giménez , Néstor Emmanuel"]
[Black "Donate Peris, Jose Manuel"]
[Result "0-1"]
[WhiteElo "1239"]
[BlackElo "1522"]
[TimeControl "180+2"]
[EndTime "11:18:23 PDT"]
[Termination "Victoria de cheryme por jaque mate"]

1. e3 {[%clk 0:03:01.9]} 1... e5 {[%clk 0:02:58.4]} 2. e4 {[%clk 0:02:59.1]}
2... Nf6 {[%clk 0:02:57]} 3. Nc3 {[%clk 0:02:58.8]} 3... Bb4 {[%clk 0:02:56.1]}
4. a3 {[%clk 0:02:57.3]} 4... Ba5 {[%clk 0:02:56]} 5. d3 {[%clk 0:02:57.4]} 5...
h6 {[%clk 0:02:55.1]} 6. Bd2 {[%clk 0:02:56.6]} 6... c6 {[%clk 0:02:53.1]} 7.
Nf3 {[%clk 0:02:50.7]} 7... d6 {[%clk 0:02:40.7]} 8. g3 {[%clk 0:02:50.1]} 8...
Bg4 {[%clk 0:02:40]} 9. Bg2 {[%clk 0:02:48.8]} 9... Nbd7 {[%clk 0:02:39.9]} 10.
O-O {[%clk 0:02:45.3]} 10... O-O {[%clk 0:02:39.9]} 11. b4 {[%clk 0:02:42.3]}
11... Bc7 {[%clk 0:02:40.2]} 12. Be3 {[%clk 0:02:39.4]} 12... d5 {[%clk
0:02:38.3]} 13. exd5 {[%clk 0:02:37.9]} 13... cxd5 {[%clk 0:02:38]} 14. Nb5
{[%clk 0:02:33.9]} 14... d4 {[%clk 0:02:31.5]} 15. Bd2 {[%clk 0:02:27]} 15...
Bb8 {[%clk 0:02:31]} 16. a4 {[%clk 0:02:21]} 16... a6 {[%clk 0:02:31.5]} 17. Na3
{[%clk 0:02:19.8]} 17... Qe7 {[%clk 0:02:27.2]} 18. c3 {[%clk 0:02:16.8]} 18...
dxc3 {[%clk 0:02:16.4]} 19. Bxc3 {[%clk 0:02:16.6]} 19... Nd5 {[%clk 0:02:15]}
20. Bb2 {[%clk 0:02:04.3]} 20... Qxb4 {[%clk 0:02:09.8]} 21. Bxe5 {[%clk
0:01:58.9]} 21... Nxe5 {[%clk 0:02:06.3]} 22. Nxe5 {[%clk 0:01:58.9]} 22... Bxd1
{[%clk 0:02:05.4]} 23. Rfxd1 {[%clk 0:01:55.7]} 23... Bxe5 {[%clk 0:02:04.3]}
24. Bxd5 {[%clk 0:01:55.5]} 24... Bxa1 {[%clk 0:02:02.6]} 25. Rxa1 {[%clk
0:01:57.4]} 25... Qd4 {[%clk 0:02:01.3]} 26. Bg2 {[%clk 0:01:56.1]} 26... Qxa1+
{[%clk 0:02:01.1]} 27. Bf1 {[%clk 0:01:55.5]} 27... Qxa3 {[%clk 0:02:01.1]} 28.
Kg2 {[%clk 0:01:53.1]} 28... Qxa4 {[%clk 0:02:00.5]} 29. h4 {[%clk 0:01:52]}
29... f5 {[%clk 0:02:00.5]} 30. Kf3 {[%clk 0:01:49.9]} 30... f4 {[%clk
0:01:59.9]} 31. g4 {[%clk 0:01:46.2]} 31... g5 {[%clk 0:01:58.3]} 32. h5 {[%clk
0:01:45.7]} 32... Qd1+ {[%clk 0:01:56.6]} 33. Be2 {[%clk 0:01:46]} 33... Qh1#
{[%clk 0:01:56.6]} 0

[Event "Torneo Nuevo Centro. Jornada 11"]
[Site "Chess.com"]
[Date "2020.08.28"]
[Round "5"]
[White "del Campo Hernández, Ángel "]
[Black "Echeverria, Nestor"]
[Result "0-1"]
[WhiteElo "1122"]
[BlackElo "1961"]
[TimeControl "180+2"]
[EndTime "11:18:44 PDT"]
[Termination "Victoria de noquierotablas por abandono"]

1. e4 {[%clk 0:03:01.9]} 1... Nf6 {[%clk 0:02:59.8]} 2. Nc3 {[%clk 0:02:57]}
2... e5 {[%clk 0:02:59]} 3. Nf3 {[%clk 0:02:52.7]} 3... Nc6 {[%clk 0:02:57.2]}
4. Bb5 {[%clk 0:02:52.8]} 4... Nd4 {[%clk 0:02:56.5]} 5. Nxd4 {[%clk 0:02:44.9]}
5... exd4 {[%clk 0:02:56.9]} 6. Ne2 {[%clk 0:02:31.2]} 6... c6 {[%clk
0:02:56.4]} 7. Bc4 {[%clk 0:02:28.5]} 7... Bc5 {[%clk 0:01:54.6]} 8. b4 {[%clk
0:02:19.3]} 8... Bxb4 {[%clk 0:01:52.4]} 9. Nxd4 {[%clk 0:02:09.1]} 9... O-O
{[%clk 0:01:51.6]} 10. Bd3 {[%clk 0:01:47.1]} 10... d5 {[%clk 0:01:47.8]} 11. f3
{[%clk 0:01:30.1]} 11... dxe4 {[%clk 0:01:47.9]} 12. c3 {[%clk 0:01:24.1]} 12...
exd3 {[%clk 0:01:47.3]} 13. cxb4 {[%clk 0:01:22.1]} 13... Qxd4 {[%clk
0:01:47.6]} 14. Rb1 {[%clk 0:01:19.6]} 14... Re8+ {[%clk 0:01:48]} 15. Kf1
{[%clk 0:01:18.3]} 15... Re2 {[%clk 0:01:48.4]} 16. Qxe2 {[%clk 0:01:11]} 16...
dxe2+ {[%clk 0:01:48.8]} 17. Kxe2 {[%clk 0:01:11.5]} 17... Bf5 {[%clk
0:01:49.6]} 18. Rb3 {[%clk 0:01:06.4]} 18... Re8+ {[%clk 0:01:47.4]} 19. Re3
{[%clk 0:01:07]} 19... Qd3+ {[%clk 0:01:31.4]} 20. Kf2 {[%clk 0:01:06.1]} 20...
Rxe3 {[%clk 0:01:31.3]} 21. dxe3 {[%clk 0:01:05.1]} 21... Qc2+ {[%clk
0:01:31.8]} 22. Kg3 {[%clk 0:01:04.2]} 0

[Event "Torneo Nuevo Centro. Jornada 11"]
[Site "Chess.com"]
[Date "2020.08.28"]
[Round "5"]
[White "Rodriguez Rodriguez, Joan David "]
[Black "Soliva Ruiz, Ramon"]
[Result "1-0"]
[WhiteElo "1788"]
[BlackElo "1517"]
[TimeControl "180+2"]
[EndTime "11:18:49 PDT"]
[Termination "Victoria de Not_Jr_chess por abandono"]

1. d4 {[%clk 0:03:01.9]} 1... Nf6 {[%clk 0:03:00.2]} 2. c4 {[%clk 0:03:02.5]}
2... e6 {[%clk 0:03:00.7]} 3. Nc3 {[%clk 0:03:03.1]} 3... b6 {[%clk 0:03:00.6]}
4. e4 {[%clk 0:02:55.1]} 4... Bb7 {[%clk 0:02:59]} 5. Bd3 {[%clk 0:02:55.1]}
5... Bb4 {[%clk 0:02:56.4]} 6. Bg5 {[%clk 0:02:37.2]} 6... h6 {[%clk 0:02:50]}
7. Bxf6 {[%clk 0:02:31.8]} 7... Qxf6 {[%clk 0:02:46.9]} 8. Nf3 {[%clk
0:02:32.6]} 8... Nc6 {[%clk 0:02:38.5]} 9. a3 {[%clk 0:02:30.7]} 9... Bxc3+
{[%clk 0:02:20.8]} 10. bxc3 {[%clk 0:02:32.6]} 10... Qe7 {[%clk 0:02:16.3]} 11.
O-O {[%clk 0:02:30]} 11... O-O {[%clk 0:02:16]} 12. d5 {[%clk 0:02:25.2]} 12...
Nd8 {[%clk 0:02:01]} 13. Re1 {[%clk 0:02:21.2]} 13... Qf6 {[%clk 0:01:50.9]} 14.
e5 {[%clk 0:02:05.2]} 14... Qf4 {[%clk 0:01:44.9]} 15. g3 {[%clk 0:01:06.3]}
15... Qg4 {[%clk 0:01:45]} 16. Re4 {[%clk 0:00:57.3]} 16... Qh5 {[%clk 0:01:43]}
17. Rh4 {[%clk 0:00:40]} 17... Qxh4 {[%clk 0:01:44]} 18. Nxh4 {[%clk 0:00:40.7]}
18... exd5 {[%clk 0:01:45.7]} 19. cxd5 {[%clk 0:00:41.9]} 19... Ne6 {[%clk
0:01:47.1]} 20. dxe6 {[%clk 0:00:42.9]} 20... dxe6 {[%clk 0:01:48.3]} 21. Nf3
{[%clk 0:00:43]} 21... Rad8 {[%clk 0:01:49.7]} 22. Qe2 {[%clk 0:00:41.7]} 22...
Bxf3 {[%clk 0:01:49.3]} 23. Qxf3 {[%clk 0:00:42.5]} 23... Rxd3 {[%clk
0:01:50.5]} 24. Qxd3 {[%clk 0:00:43.7]} 24... Rd8 {[%clk 0:01:52.1]} 25. Qxd8+
{[%clk 0:00:44.3]} 1

[Event "Torneo Nuevo Centro. Jornada 11"]
[Site "Chess.com"]
[Date "2020.08.28"]
[Round "5"]
[White "Gukasov, Artem"]
[Black "Ortiz Benavent, Alba"]
[Result "1-0"]
[WhiteElo "1444"]
[BlackElo "1185"]
[TimeControl "180+2"]
[EndTime "11:18:59 PDT"]
[Termination "Victoria de ArtemGukasov por abandono"]

1. e4 {[%clk 0:03:01.9]} 1... e5 {[%clk 0:03:00.6]} 2. Nf3 {[%clk 0:03:03.8]}
2... Nc6 {[%clk 0:03:00.6]} 3. Bc4 {[%clk 0:03:05.7]} 3... Bc5 {[%clk
0:03:00.5]} 4. Nc3 {[%clk 0:03:05.3]} 4... d6 {[%clk 0:03:01.4]} 5. d3 {[%clk
0:03:05.3]} 5... Nf6 {[%clk 0:02:56.8]} 6. Be3 {[%clk 0:03:04.5]} 6... Bb6
{[%clk 0:02:54.9]} 7. O-O {[%clk 0:03:03.3]} 7... O-O {[%clk 0:02:54.8]} 8. Bg5
{[%clk 0:03:03.2]} 8... Bg4 {[%clk 0:02:53.6]} 9. Nd5 {[%clk 0:03:05.1]} 9...
Nd4 {[%clk 0:02:38.7]} 10. Nxf6+ {[%clk 0:02:56.1]} 10... gxf6 {[%clk
0:02:36.5]} 11. Bh6 {[%clk 0:02:56.9]} 11... Nxf3+ {[%clk 0:02:33.1]} 12. gxf3
{[%clk 0:02:57]} 12... Bh3 {[%clk 0:02:29.1]} 13. Bxf8 {[%clk 0:02:37]} 13...
Bxf1 {[%clk 0:02:29.3]} 14. Qxf1 {[%clk 0:02:36.6]} 14... Qxf8 {[%clk
0:02:29.3]} 15. Qg2+ {[%clk 0:02:34.8]} 15... Qg7 {[%clk 0:02:29.9]} 16. Qxg7+
{[%clk 0:02:35.8]} 16... Kxg7 {[%clk 0:02:30.9]} 17. Kg2 {[%clk 0:02:33.4]}
17... Rg8 {[%clk 0:02:29.8]} 18. Kf1 {[%clk 0:02:34.2]} 18... Kf8 {[%clk
0:02:29.1]} 19. c3 {[%clk 0:02:25.3]} 19... c6 {[%clk 0:02:27.2]} 20. b4 {[%clk
0:02:26.2]} 20... a6 {[%clk 0:02:22.2]} 21. a4 {[%clk 0:02:23.4]} 21... Rg5
{[%clk 0:02:18.4]} 22. b5 {[%clk 0:02:18.8]} 22... axb5 {[%clk 0:02:10.9]} 23.
axb5 {[%clk 0:02:19]} 23... f5 {[%clk 0:02:01.4]} 24. Ra8+ {[%clk 0:02:12.8]}
24... Ke7 {[%clk 0:01:55.7]} 25. Rb8 {[%clk 0:02:12.7]} 25... fxe4 {[%clk
0:01:37.6]} 26. dxe4 {[%clk 0:02:12.5]} 26... Rh5 {[%clk 0:01:36.2]} 27. Rxb7+
{[%clk 0:02:13.3]} 27... Kd8 {[%clk 0:01:32.8]} 28. Rxb6 {[%clk 0:02:13.9]}
28... cxb5 {[%clk 0:01:32.7]} 29. Bxb5 {[%clk 0:02:14.6]} 29... Rxh2 {[%clk
0:01:31.9]} 30. Rxd6+ {[%clk 0:02:14.6]} 30... Ke7 {[%clk 0:01:30.2]} 31. Rd5
{[%clk 0:02:14]} 31... f6 {[%clk 0:01:29.8]} 32. c4 {[%clk 0:02:14.8]} 32... Rh3
{[%clk 0:01:30.1]} 33. Ke2 {[%clk 0:02:13]} 33... h5 {[%clk 0:01:28.1]} 34. c5
{[%clk 0:02:14.1]} 34... h4 {[%clk 0:01:25]} 35. c6 {[%clk 0:02:14.8]} 35... Rh1
{[%clk 0:01:25.7]} 36. Rc5 {[%clk 0:02:13.9]} 36... Kd8 {[%clk 0:01:22.2]} 37.
c7+ {[%clk 0:02:15]} 37... Kc8 {[%clk 0:01:22.3]} 38. Ba6+ {[%clk 0:02:16.9]}
38... Kd7 {[%clk 0:01:21.6]} 39. c8=Q+ {[%clk 0:02:18]} 1

[Event "Torneo Nuevo Centro. Jornada 11"]
[Site "Chess.com"]
[Date "2020.08.28"]
[Round "5"]
[White "Gimenez Saiz, Jose Raul"]
[Black "Lloret Ramis, Juan José"]
[Result "1/2-1/2"]
[WhiteElo "1830"]
[BlackElo "1987"]
[TimeControl "180+2"]
[EndTime "11:19:01 PDT"]
[Termination "Tablas por repeticiÃ³n"]

1. d4 {[%clk 0:03:01.9]} 1... d5 {[%clk 0:03:00]} 2. e3 {[%clk 0:03:02.2]} 2...
e6 {[%clk 0:03:00.8]} 3. Bd3 {[%clk 0:03:03.4]} 3... Nf6 {[%clk 0:03:01.5]} 4.
Nd2 {[%clk 0:03:04.9]} 4... c5 {[%clk 0:03:02.5]} 5. c3 {[%clk 0:03:04.6]} 5...
Nc6 {[%clk 0:03:03.5]} 6. f4 {[%clk 0:03:06.1]} 6... Bd6 {[%clk 0:03:00.8]} 7.
Ngf3 {[%clk 0:03:07.5]} 7... cxd4 {[%clk 0:03:01.3]} 8. cxd4 {[%clk 0:03:07.2]}
8... O-O {[%clk 0:02:59.6]} 9. O-O {[%clk 0:03:02]} 9... b6 {[%clk 0:02:54.9]}
10. a3 {[%clk 0:03:01.9]} 10... Ne7 {[%clk 0:02:50.4]} 11. Ne5 {[%clk
0:02:59.7]} 11... Bb7 {[%clk 0:02:47.3]} 12. Qf3 {[%clk 0:02:53.9]} 12... Rc8
{[%clk 0:02:33.9]} 13. g4 {[%clk 0:02:51.4]} 13... Qc7 {[%clk 0:01:48]} 14. g5
{[%clk 0:02:50.4]} 14... Ne4 {[%clk 0:01:49.2]} 15. Nxe4 {[%clk 0:02:50.7]}
15... dxe4 {[%clk 0:01:50.2]} 16. Bxe4 {[%clk 0:02:52.5]} 16... Bxe4 {[%clk
0:01:51.4]} 17. Qxe4 {[%clk 0:02:53]} 17... Qc2 {[%clk 0:01:52.9]} 18. Qxc2
{[%clk 0:02:53.2]} 18... Rxc2 {[%clk 0:01:53]} 19. Nd3 {[%clk 0:02:28.6]} 19...
Rfc8 {[%clk 0:01:45.7]} 20. e4 {[%clk 0:02:22.1]} 20... R8c4 {[%clk 0:01:22.9]}
21. Be3 {[%clk 0:02:22.2]} 21... Re2 {[%clk 0:01:18.6]} 22. Rae1 {[%clk
0:02:12.5]} 22... Rcc2 {[%clk 0:01:13.3]} 23. Rxe2 {[%clk 0:02:05.4]} 23... Rxe2
{[%clk 0:01:14]} 24. Re1 {[%clk 0:02:06]} 24... Rc2 {[%clk 0:01:06.6]} 25. Rc1
{[%clk 0:02:03.6]} 25... Re2 {[%clk 0:01:03.1]} 26. Re1 {[%clk 0:01:32.5]} 26...
Rc2 {[%clk 0:01:04]} 27. Rc1 {[%clk 0:01:32.9]} 27... Re2 {[%clk 0:01:04.4]} 28.
Re1 {[%clk 0:01:32.5]} 1/2-1

[Event "Torneo Nuevo Centro. Jornada 11"]
[Site "Chess.com"]
[Date "2020.08.28"]
[Round "5"]
[White "Martin Ayala, David"]
[Black "Gil López, Alejandro"]
[Result "1-0"]
[WhiteElo "1888"]
[BlackElo "2198"]
[TimeControl "180+2"]
[EndTime "11:19:26 PDT"]
[Termination "Victoria de martinayala por jaque mate"]

1. e4 {[%clk 0:03:01.9]} 1... c5 {[%clk 0:03:01.3]} 2. Nc3 {[%clk 0:03:02.6]}
2... g6 {[%clk 0:03:02.4]} 3. f4 {[%clk 0:03:03.1]} 3... Bg7 {[%clk 0:03:03]} 4.
Nf3 {[%clk 0:03:04.2]} 4... Nc6 {[%clk 0:03:04.1]} 5. Bc4 {[%clk 0:03:04.7]}
5... e6 {[%clk 0:03:05.4]} 6. O-O {[%clk 0:03:05.5]} 6... Nge7 {[%clk
0:03:06.8]} 7. Qe1 {[%clk 0:03:06.4]} 7... O-O {[%clk 0:03:08.2]} 8. f5 {[%clk
0:03:07.4]} 8... exf5 {[%clk 0:03:04.2]} 9. d3 {[%clk 0:03:07.9]} 9... fxe4
{[%clk 0:03:02.4]} 10. dxe4 {[%clk 0:03:08.6]} 10... a6 {[%clk 0:02:45.1]} 11.
a4 {[%clk 0:03:08.9]} 11... Nd4 {[%clk 0:02:41.9]} 12. Bg5 {[%clk 0:03:08.4]}
12... h6 {[%clk 0:02:40.2]} 13. Bxe7 {[%clk 0:02:54.1]} 13... Qxe7 {[%clk
0:02:42.1]} 14. Nd5 {[%clk 0:02:51.1]} 14... Qd6 {[%clk 0:02:37.7]} 15. Qd2
{[%clk 0:02:38.8]} 15... Rb8 {[%clk 0:02:15.8]} 16. c3 {[%clk 0:02:38.5]} 16...
Nxf3+ {[%clk 0:02:14.6]} 17. Rxf3 {[%clk 0:02:38.2]} 17... Qe5 {[%clk
0:02:07.9]} 18. a5 {[%clk 0:02:32.1]} 18... Qxe4 {[%clk 0:01:55.5]} 19. Re1
{[%clk 0:02:19.1]} 19... Qxc4 {[%clk 0:01:53.3]} 20. Ne7+ {[%clk 0:02:08.4]}
20... Kh7 {[%clk 0:01:44.6]} 21. Qd6 {[%clk 0:02:08.5]} 21... Ra8 {[%clk
0:01:35.3]} 22. Nxg6 {[%clk 0:02:07.3]} 22... fxg6 {[%clk 0:00:31.1]} 23. Rxf8
{[%clk 0:02:07.7]} 23... b5 {[%clk 0:00:27.7]} 24. Re7 {[%clk 0:01:54.8]} 24...
Bb7 {[%clk 0:00:23.2]} 25. Rxg7+ {[%clk 0:01:51.2]} 25... Kxg7 {[%clk
0:00:16.6]} 26. Qe7+ {[%clk 0:01:51.9]} 26... Qf7 {[%clk 0:00:17.4]} 27. Qxf7#
{[%clk 0:01:52.3]} 1

[Event "Torneo Nuevo Centro. Jornada 11"]
[Site "Chess.com"]
[Date "2020.08.28"]
[Round "5"]
[White "Vidarte Morales, Arturo"]
[Black "Tormos Beltran, Maite"]
[Result "1-0"]
[WhiteElo "2206"]
[BlackElo "1474"]
[TimeControl "180+2"]
[EndTime "11:19:47 PDT"]
[Termination "Victoria de Arturo_Vidarte por abandono"]

1. c4 {[%clk 0:03:01.9]} 1... e5 {[%clk 0:02:58.6]} 2. Nc3 {[%clk 0:03:01.7]}
2... Nf6 {[%clk 0:02:59]} 3. g3 {[%clk 0:03:02.2]} 3... d5 {[%clk 0:02:54.4]} 4.
cxd5 {[%clk 0:03:01.8]} 4... Nxd5 {[%clk 0:02:55]} 5. Nf3 {[%clk 0:03:02.8]}
5... Nxc3 {[%clk 0:02:49.1]} 6. bxc3 {[%clk 0:03:01.8]} 6... Nc6 {[%clk
0:02:48.9]} 7. Bg2 {[%clk 0:03:02.1]} 7... Bd6 {[%clk 0:02:49.6]} 8. O-O {[%clk
0:02:54.4]} 8... O-O {[%clk 0:02:49.9]} 9. d3 {[%clk 0:02:50.1]} 9... f5 {[%clk
0:02:43.6]} 10. Rb1 {[%clk 0:02:48.2]} 10... Qf6 {[%clk 0:02:39.3]} 11. a4
{[%clk 0:02:34.5]} 11... a6 {[%clk 0:02:23.8]} 12. Bg5 {[%clk 0:02:22.3]} 12...
Qe6 {[%clk 0:02:16.7]} 13. Be3 {[%clk 0:02:16.7]} 13... f4 {[%clk 0:02:03.4]}
14. Bd2 {[%clk 0:02:13.9]} 14... Rf6 {[%clk 0:01:45.9]} 15. Qb3 {[%clk
0:01:44.8]} 15... Qxb3 {[%clk 0:01:23]} 16. Rxb3 {[%clk 0:01:44.5]} 16... Rb8
{[%clk 0:01:20]} 17. Ng5 {[%clk 0:01:39.2]} 17... Bd7 {[%clk 0:01:13.3]} 18.
Bd5+ {[%clk 0:01:35.2]} 18... Kh8 {[%clk 0:01:08.7]} 19. Nf7+ {[%clk 0:01:34.9]}
19... Rxf7 {[%clk 0:00:58.1]} 20. Bxf7 {[%clk 0:01:34.8]} 20... Rf8 {[%clk
0:00:57.9]} 21. Bd5 {[%clk 0:01:31.9]} 21... Bh3 {[%clk 0:00:56]} 22. Rxb7
{[%clk 0:01:24]} 22... Na5 {[%clk 0:00:51.2]} 23. Ra7 {[%clk 0:01:19.6]} 23...
Bxf1 {[%clk 0:00:49.6]} 24. Kxf1 {[%clk 0:01:19.7]} 24... Rb8 {[%clk 0:00:44.6]}
25. Rxa6 {[%clk 0:01:17.7]} 25... Nb3 {[%clk 0:00:42.8]} 26. Bxb3 {[%clk
0:01:16.5]} 26... Rxb3 {[%clk 0:00:42.1]} 27. Ra8+ {[%clk 0:01:16.4]} 1